bitfinex-derivatives/quotes_SOLF0:USTF0_20250111
["timestamp","ask_amount","ask_price","bid_price","bid_amount"]
[1736565947980,2.6917,185.78,185.75,7.21624833]
[1736565949079,2.6915,185.8,185.77,7.21624833]
[1736565950580,2.6913,185.81,185.77,7.21624833]
[1736565951683,2.6915,185.8,185.77,7.21624833]
[1736565954287,7.21624833,185.83,185.77,7.21624833]
[1736565954683,7.21624833,185.83,185.75,7.21624833]
[1736565954886,7.21624833,185.81,185.73,7.21624833]
[1736565955284,7.21624833,185.81,185.71,2.6927]
[1736565955485,7.21624833,185.81,185.73,7.21624833]
[1736565956288,2.6921,185.76,185.73,7.21624833]
[1736565957389,2.6922,185.75,185.73,7.21624833]
[1736565958081,1.6454,185.79,185.72,2.6925]
[1736565958082,8.86164833,185.79,185.72,7.21624833]
[1736565958385,1.6454,185.79,185.72,7.21624833]
[1736565958989,2.692,185.76,185.73,2.6924]
[1736565959287,2.692,185.76,185.67,5.44]
[1736565959288,1.6454,185.79,185.74,7.21624833]
[1736565959488,2.6916,185.79,185.76,7.21624833]
[1736565959982,1.5248,185.8,185.67,5.44]
[1736565960185,8.74104833,185.8,185.74,7.21624833]
[1736565961083,2.692,185.77,185.74,7.21624833]
[1736565961382,1.5248,185.8,185.74,7.21624833]
[1736565962086,2.6918,185.78,185.75,2.6921]
[1736565962284,2.6918,185.78,185.74,7.21624833]
[1736565962486,1.5248,185.8,185.74,7.21624833]
[1736565962786,2.6921,185.76,185.74,7.21624833]
[1736565965184,1.5248,185.8,185.74,7.21624833]
[1736565965386,8.85184833,185.84,185.77,7.21624833]
[1736565965891,2.6916,185.8,185.77,7.21624833]
[1736565966983,2.6916,185.79,185.77,7.21624833]
[1736565967189,7.21624833,185.82,185.72,2.6925]
[1736565967391,7.21624833,185.82,185.74,7.21624833]
[1736565967793,2.6919,185.77,185.74,7.21624833]
[1736565968991,2.6919,185.77,185.74,9.90854833]
[1736565969683,2.6919,185.77,185.76,7.21624833]
[1736565970191,2.6917,185.78,185.76,7.21624833]
[1736565976395,7.21624833,185.83,185.76,7.21624833]
[1736565976689,7.21624833,185.83,185.76,9.90824833]
[1736565977085,7.21624833,185.83,185.7,5.46]
[1736565977086,7.21624833,185.83,185.78,7.21624833]
[1736565977291,1.6356,185.84,185.78,7.21624833]
[1736565977501,1.6356,185.84,185.8,7.21624833]
[1736565978192,2.691,185.83,185.8,7.21624833]
[1736565978597,1.6356,185.84,185.82,7.21624833]
[1736565978598,2.6909,185.84,185.82,7.21624833]
[1736565979193,2.6907,185.86,185.82,9.90724833]
[1736565980796,2.6904,185.87,185.84,7.21624833]
[1736565981095,54.52072047,185.89,185.84,7.21624833]
[1736565981392,2.6904,185.88,185.84,7.21624833]
[1736565982090,2.6904,185.88,185.78,5.46]
[1736565982091,2.6904,185.88,185.86,7.21624833]
[1736565984095,2.6901,185.89,185.86,7.21624833]
[1736565985599,1.5978,185.9,185.86,7.21624833]
[1736565985795,2.69,185.9,185.88,7.21624833]
[1736565987901,12.02484833,185.95,185.88,7.21624833]
[1736565989301,2.6899,185.91,185.88,7.21624833]
[1736565991894,12.02484833,185.95,185.88,7.21624833]
[1736565992203,2.6897,185.92,185.88,9.90644833]
[1736565994005,2.6897,185.92,185.88,7.21624833]
[1736565994300,2.69,185.9,185.88,7.21624833]
[1736566009316,7.21624833,185.91,185.81,5.44]
[1736566009515,7.21624833,185.91,185.84,7.21624833]
[1736566011018,2.6906,185.86,185.84,7.21624833]
[1736566011421,7.21624833,185.91,185.84,7.21624833]
[1736566011716,7.21624833,185.93,185.86,7.21624833]
[1736566012024,12.02484833,185.95,185.88,7.21624833]
[1736566012319,2.69,185.9,185.88,7.21624833]
[1736566017424,2.69,185.9,185.86,2.6904]
[1736566017620,2.69,185.9,185.88,7.21624833]
[1736566019022,2.6902,185.89,185.85,2.6907]
[1736566019215,7.21624833,185.93,185.81,5.44]
[1736566019417,7.21624833,185.93,185.87,7.21624833]
[1736566020420,2.6902,185.89,185.87,7.21624833]
[1736566025228,2.69,185.9,185.87,7.21624833]
[1736566027928,19.01260129,185.95,185.87,7.21624833]
[1736566028131,2.6901,185.89,185.87,7.21624833]
[1736566029131,2.6903,185.88,185.85,7.21624833]
[1736566029831,2.6904,185.87,185.85,7.21624833]
[1736566032530,2.6903,185.88,185.85,7.21624833]
[1736566032727,6.98775296,185.93,185.85,7.21624833]
[1736566032934,14.20400129,185.93,185.87,7.21624833]
[1736566033433,7.21624833,185.93,185.87,7.21624833]
[1736566034337,12.02484833,185.95,185.89,7.21624833]
[1736566035340,2.6898,185.92,185.89,7.21624833]
[1736566035543,4.8086,185.95,185.91,7.21624833]
[1736566035839,3.2225,185.95,185.93,7.21624833]
[1736566036536,5.9118,185.95,185.93,7.21624833]
[1736566037544,2.6893,185.95,185.93,7.21624833]
[1736566037746,5.02504818,185.98,185.93,7.21624833]
[1736566037941,5.02504818,185.98,185.96,2.6891]
[1736566038242,2.6886,186.0,185.97,7.21624833]
[1736566038544,3.1446,186.01,185.97,7.21624833]
[1736566038845,2.6887,185.99,185.97,7.21624833]
[1736566042046,3.1446,186.01,185.95,7.21624833]
[1736566042549,2.6891,185.96,185.95,7.21624833]
[1736566043745,7.21624833,185.98,185.88,8.1502]
[1736566043954,7.21624833,185.96,185.88,8.1502]
[1736566044250,7.21624833,185.94,185.87,7.21624833]
[1736566044453,1.6113,185.93,185.87,7.21624833]
[1736566045250,2.69,185.9,185.87,7.21624833]
[1736566046855,2.69,185.9,185.85,2.6907]
[1736566047052,2.69,185.9,185.88,7.21624833]
[1736566047255,3.2643,185.93,185.85,2.6907]
[1736566047453,3.2643,185.93,185.87,7.21624833]
[1736566048556,2.6903,185.88,185.87,7.21624833]
[1736566048759,2.6903,185.88,185.85,7.21624833]
[1736566050358,3.2643,185.93,185.87,7.21624833]
[1736566050558,3.2643,185.93,185.89,7.21624833]
[1736566051758,2.6899,185.91,185.89,7.21624833]
[1736566051960,3.2643,185.93,185.89,7.21624833]
[1736566052161,2.6897,185.92,185.91,7.21624833]
[1736566053863,2.6899,185.91,185.89,7.21624833]
[1736566070972,1.6113,185.93,185.89,7.21624833]
[1736566071165,8.82754833,185.93,185.87,7.21624833]
[1736566071771,8.82754833,185.93,185.79,1.2993]
[1736566071978,7.21624833,185.91,185.84,7.21624833]
[1736566072969,2.6901,185.89,185.84,7.21624833]
[1736566073170,7.21624833,185.91,185.84,7.21624833]
[1736566073378,7.21624833,185.91,185.86,7.21624833]
[1736566074073,2.6903,185.88,185.86,7.21624833]
[1736566078822,7.21624833,185.91,185.86,7.21624833]
[1736566079010,2.6904,185.87,185.86,7.21624833]
[1736566079308,2.6904,185.87,185.84,2.6908]
[1736566079511,2.6904,185.87,185.85,7.21624833]
[1736566080010,2.6903,185.88,185.85,7.21624833]
[1736566084668,2.6903,185.88,185.84,2.6908]
[1736566084871,2.6903,185.88,185.86,7.21624833]
[1736566085774,2.6901,185.9,185.86,9.90674833]
[1736566086779,2.6899,185.91,185.88,7.21624833]
[1736566087677,2.6899,185.91,185.86,2.6905]
[1736566087879,2.6899,185.91,185.89,7.21624833]
[1736566098587,1.573,185.92,185.79,1.2993]
[1736566098787,2.6903,185.88,185.87,7.21624833]
[1736566099594,8.78924833,185.92,185.87,7.21624833]
[1736566099793,2.6902,185.89,185.87,7.21624833]
[1736566105692,1.573,185.92,185.87,7.21624833]
[1736566105895,1.573,185.92,185.89,7.21624833]
[1736566106093,1.6113,185.93,185.89,7.21624833]
[1736566107194,2.6897,185.92,185.89,7.21624833]
[1736566107596,4.3009,185.93,185.91,7.21624833]
[1736566110599,3.3144,185.97,185.91,7.21624833]
[1736566110792,3.3144,185.97,185.94,7.21624833]
[1736566111300,2.6892,185.96,185.94,7.21624833]
[1736566111501,2.6892,185.96,185.95,7.21624833]
[1736566112102,7.78997267,185.98,185.95,7.21624833]
[1736566114499,2.6891,185.96,185.95,7.21624833]
[1736566118596,7.78997267,185.98,185.95,7.21624833]
[1736566123704,5.10117267,185.98,185.95,7.21624833]
[1736566124006,2.689,185.97,185.95,7.21624833]
[1736566125006,7.79007267,185.98,185.95,7.21624833]
[1736566127101,5.10117267,185.98,185.97,7.21624833]
[1736566127295,3.1395,186.02,185.97,7.21624833]
[1736566127497,3.1395,186.02,185.99,7.21624833]
[1736566127703,3.1395,186.02,185.89,1.2923]
[1736566127896,3.1395,186.02,185.97,7.21624833]
[1736566128804,2.6886,186.0,185.99,7.21624833]
[1736566130104,2.6886,186.0,185.97,7.21624833]
[1736566132608,3.1395,186.02,185.99,7.21624833]
[1736566132912,2.6884,186.01,185.99,7.21624833]
[1736566133304,2.6883,186.02,185.99,7.21624833]
[1736566134308,2.6883,186.02,186.01,7.21624833]
[1736566138014,2.6883,186.02,185.99,2.6886]
[1736566138215,2.6883,186.02,185.99,9.90484833]
[1736566138518,2.6884,186.01,185.99,7.21624833]
[1736566139011,2.6881,186.03,185.99,9.90474833]
[1736566139216,2.6881,186.03,186.01,7.21624833]
[1736566139406,55.99899137,186.05,186.01,7.21624833]
[1736566139611,2.688,186.04,186.01,9.90454833]
[1736566141014,2.688,186.04,186.01,7.21624833]
[1736566144818,2.6881,186.03,186.01,7.21624833]
[1736566151424,2.6881,186.03,185.99,9.90484833]
[1736566152124,2.6884,186.01,185.99,7.21624833]
[1736566161330,2.6884,186.01,185.94,5.42]
[1736566161331,2.6888,185.99,185.96,7.21624833]
[1736566163729,2.6888,185.99,185.98,7.21624833]
[1736566178039,2.6885,186.01,185.98,9.90504833]
[1736566178342,2.6885,186.01,186.0,7.21624833]
[1736566198961,1.6472,186.04,186.0,7.21624833]
[1736566199164,2.6882,186.02,185.92,5.42]
[1736566199559,2.6882,186.02,186.01,7.21624833]
[1736566199855,1.6472,186.04,185.92,5.42]
[1736566202060,2.6886,186.0,185.96,2.6891]
[1736566202261,2.6886,186.0,185.99,7.21624833]
[1736566203959,1.6472,186.04,185.99,7.21624833]
[1736566204257,2.6884,186.02,186.01,7.21624833]
[1736566204464,2.6884,186.02,185.92,5.42]
[1736566204663,2.6884,186.02,186.0,7.21624833]
[1736566206869,2.6884,186.02,185.98,2.6888]
[1736566207059,1.6472,186.04,185.92,5.42]
[1736566207457,1.6472,186.04,185.98,7.21624833]
[1736566208171,2.6886,186.0,185.98,7.21624833]
[1736566208868,8.59563264,186.07,185.98,7.21624833]
[1736566209169,150.23600394,186.07,186.02,7.21624833]
[1736566209368,2.6878,186.05,186.02,7.21624833]
[1736566209565,148.62820394,186.07,186.04,7.21624833]
[1736566209767,148.62820394,186.07,186.06,7.21624833]
[1736566210069,2.6875,186.08,186.06,7.21624833]
[1736566210270,150.27550394,186.1,186.06,7.21624833]
[1736566211077,2.6875,186.07,186.06,7.21624833]
[1736566211272,1.6473,186.1,186.06,7.21624833]
[1736566212364,2.6873,186.09,186.06,7.21624833]
[1736566212564,2.6873,186.09,186.08,7.21624833]
[1736566213171,2.6871,186.11,186.08,7.21624833]
[1736566213369,2.6871,186.11,186.1,7.21624833]
[1736566216571,8.70183332,186.12,186.1,7.21624833]
[1736566217373,6.01503332,186.12,186.1,7.21624833]
[1736566218268,1.5296,186.15,186.1,9.90334833]
[1736566218467,1.5296,186.15,186.08,5.42]
[1736566218468,223.3776253,186.21,186.14,7.21624833]
[1736566218669,148.62820394,186.23,186.17,7.21624833]
[1736566219068,2.6857,186.2,186.17,7.21624833]
[1736566219879,2.6858,186.19,186.17,7.21624833]
[1736566223079,10.37534833,186.24,186.17,7.21624833]
[1736566223778,2.6859,186.19,186.17,7.21624833]
[1736566223980,3.1591,186.24,186.19,7.21624833]
[1736566224479,2.6856,186.21,186.19,7.21624833]
[1736566228279,3.1591,186.24,186.19,7.21624833]
[1736566228485,2.6856,186.2,186.19,7.21624833]
[1736566229884,3.1591,186.24,186.17,7.21624833]
[1736566229885,2.6859,186.18,186.17,7.21624833]
[1736566234386,3.1591,186.24,186.17,7.21624833]
[1736566234593,3.1591,186.24,186.12,5.42]
[1736566234594,2.6858,186.2,186.19,7.21624833]
[1736566235789,3.1591,186.24,186.19,7.21624833]
[1736566236793,2.6855,186.21,186.19,7.21624833]
[1736566239097,3.1591,186.24,186.19,7.21624833]
[1736566239300,2.6856,186.2,186.19,7.21624833]
[1736566241293,2.6853,186.23,186.19,7.21624833]
[1736566241596,3.1591,186.24,186.19,7.21624833]
[1736566241792,2.6855,186.21,186.19,7.21624833]
[1736566244096,2.6855,186.21,186.17,2.686]
[1736566244400,2.6855,186.21,186.2,7.21624833]
[1736566250699,148.62820394,186.27,186.2,7.21624833]
[1736566250902,148.62820394,186.27,186.25,7.21624833]
[1736566251098,151.31290394,186.27,186.25,7.21624833]
[1736566251296,204.38872887,186.29,186.25,7.21624833]
[1736566251909,204.38872887,186.29,186.27,7.21624833]
[1736566252105,55.76052493,186.29,186.27,7.21624833]
[1736566253110,2.6845,186.28,186.27,7.21624833]
[1736566260809,2.6851,186.24,186.21,5.42]
[1736566261010,55.76052493,186.29,186.21,5.42]
[1736566261205,55.76052493,186.29,186.09,200.6571]
[1736566261206,7.21624833,186.26,186.2,7.21624833]
[1736566261412,2.6855,186.21,186.2,7.21624833]
[1736566267911,2.6852,186.23,186.2,7.21624833]
[1736566268117,2.6852,186.23,186.22,7.21624833]
[1736566268311,1.6598,186.26,186.22,7.21624833]
[1736566268511,2.6849,186.25,186.24,7.21624833]
[1736566269414,55.76052493,186.29,186.24,7.21624833]
[1736566269612,55.76052493,186.29,186.26,7.21624833]
[1736566270525,1.6251,186.3,186.26,7.21624833]
[1736566271325,2.6847,186.27,186.26,7.21624833]
[1736566276121,1.6251,186.3,186.26,7.21624833]
[1736566276323,155.64301239,186.34,186.29,7.21624833]
[1736566276525,155.64301239,186.34,186.32,7.21624833]
[1736566276723,148.62820394,186.34,186.32,7.21624833]
[1736566277122,148.62820394,186.34,186.32,7.15146636]
[1736566277527,60.32933151,186.36,186.32,7.15146636]
[1736566277834,60.32933151,186.36,186.34,7.21624833]
[1736566279230,148.62820394,186.42,186.34,7.21624833]
[1736566279435,3.1321,186.41,186.38,7.21624833]
[1736566279732,2.6829,186.39,186.38,7.21624833]
[1736566284534,2.6832,186.37,186.36,7.21624833]
[1736566285133,2.6835,186.35,186.34,7.21624833]
[1736566295439,7.21624833,186.37,186.24,1.06]
[1736566295641,7.21624833,186.35,186.29,7.21624833]
[1736566295839,4.8109,186.34,186.29,7.21624833]
[1736566296035,2.6842,186.3,186.29,7.21624833]
[1736566296239,3.2762,186.39,186.29,7.21624833]
[1736566296440,3.2762,186.39,186.35,7.21624833]
[1736566296639,2.6833,186.36,186.35,7.21624833]
[1736566297641,3.2762,186.39,186.35,7.21624833]
[1736566297844,2.6829,186.39,186.38,7.21624833]
[1736566302742,2.6834,186.36,186.32,2.6838]
[1736566302947,1.5347,186.41,186.29,1.0588]
[1736566303143,7.21624833,186.4,186.35,7.21624833]
[1736566303447,2.6833,186.36,186.35,7.21624833]
[1736566304147,7.21624833,186.36,186.31,7.21624833]
[1736566304347,7.21624833,186.36,186.29,7.21624833]
[1736566304543,3.2801,186.35,186.29,7.21624833]
[1736566305342,7.21624833,186.34,186.23,5.4]
[1736566305547,7.21624833,186.34,186.28,7.21624833]
[1736566305847,2.6843,186.29,186.28,7.21624833]
[1736566306147,7.21624833,186.32,186.26,7.21624833]
[1736566306841,2.6846,186.28,186.26,7.21624833]
[1736566307738,7.21624833,186.32,186.21,5.4]
[1736566307936,2.6848,186.27,186.21,5.4]
[1736566308142,2.6848,186.27,186.26,7.21624833]
[1736566310152,1.6228,186.34,186.26,7.21624833]
[1736566310446,2.6843,186.3,186.28,7.21624833]
[1736566310650,8.83904833,186.34,186.28,7.21624833]
[1736566312350,2.6843,186.29,186.28,7.21624833]
[1736566319153,1.6228,186.34,186.28,7.21624833]
[1736566319355,1.6228,186.34,186.3,7.21624833]
[1736566320744,2.6842,186.31,186.3,7.21624833]
[1736566324756,2.6844,186.29,186.28,7.21624833]
[1736566324953,7.21624833,186.32,186.26,7.21624833]
[1736566325165,7.21624833,186.3,186.24,7.21624833]
[1736566325659,7.21624833,186.32,186.26,7.21624833]
[1736566327264,2.6846,186.27,186.26,7.21624833]
[1736566328564,2.6844,186.29,186.26,7.21624833]
[1736566328765,2.6844,186.29,186.28,7.21624833]
[1736566330665,2.6842,186.3,186.28,7.21624833]
[1736566331368,2.6843,186.29,186.28,7.21624833]
[1736566340171,2.6847,186.27,186.26,7.21624833]
[1736566345569,150.25100394,186.34,186.26,9.90104833]
[1736566345570,2.6843,186.3,186.26,9.90104833]
[1736566345770,2.6843,186.3,186.29,7.21624833]
[1736566346868,2.684,186.32,186.29,7.21624833]
[1736566347073,2.684,186.32,186.31,7.21624833]
[1736566347873,2.6838,186.33,186.31,7.21624833]
[1736566349063,2.6839,186.32,186.31,7.21624833]
[1736566350177,2.6842,186.3,186.29,7.21624833]
[1736566351175,2.6845,186.28,186.27,7.21624833]
[1736566356381,2.6842,186.31,186.27,9.90084833]
[1736566356584,2.6842,186.31,186.3,7.21624833]
[1736566360383,14.23833829,186.37,186.3,9.90044833]
[1736566360384,7.02208996,186.37,186.3,9.90044833]
[1736566360583,7.02208996,186.37,186.33,7.21624833]
[1736566360786,150.0151177,186.38,186.33,7.21624833]
[1736566361585,1.6238,186.38,186.33,7.21624833]
[1736566361986,2.6833,186.36,186.35,7.21624833]
[1736566362178,1.5453,186.39,186.35,7.21624833]
[1736566363181,2.6833,186.37,186.35,7.21624833]
[1736566365882,2.6829,186.4,186.36,2.6833]
[1736566366084,8.61604098,186.44,186.39,7.21624833]
[1736566366283,8.61604098,186.44,186.42,7.21624833]
[1736566366594,2.6824,186.43,186.42,7.21624833]
[1736566370892,2.6826,186.41,186.4,7.21624833]
[1736566371092,1.5962,186.44,186.38,7.21624833]
[1736566371793,2.6829,186.39,186.33,8.0836]
[1736566371993,8.81244833,186.44,186.38,7.21624833]
[1736566372392,2.6829,186.39,186.38,7.21624833]
[1736566382300,2.6835,186.35,186.33,5.4]
[1736566382502,2.6835,186.35,186.34,7.21624833]
[1736566384805,2.6839,186.33,186.31,5.4]
[1736566385008,7.21624833,186.4,186.24,1.5458]
[1736566385206,7.21624833,186.38,186.32,7.21624833]
[1736566385806,2.6838,186.33,186.32,7.21624833]
[1736566387605,2.6842,186.3,186.27,8.0846]
[1736566387806,2.6842,186.3,186.29,7.21624833]
[1736566388305,2.6841,186.31,186.29,7.21624833]
[1736566388505,2.6841,186.31,186.3,7.21624833]
[1736566390309,2.6843,186.29,186.28,7.21624833]
[1736566390713,7.21624833,186.34,186.23,5.4]
[1736566390913,2.6849,186.26,186.22,2.6853]
[1736566391118,2.6849,186.26,186.25,7.21624833]
[1736566392405,2.6849,186.26,186.22,2.6853]
[1736566392604,7.21624833,186.3,186.2,42.17835474]
[1736566392810,1.5233,186.29,186.23,7.21624833]
[1736566393007,2.6851,186.24,186.23,7.21624833]
[1736566393211,7.21624833,186.28,186.21,7.21624833]
[1736566394219,2.6853,186.22,186.21,7.21624833]
[1736566395810,2.6853,186.22,186.15,5.4]
[1736566396011,2.6859,186.18,186.13,6.986]
[1736566396726,2.6854,186.22,186.17,2.686]
[1736566397217,2.6854,186.22,186.18,2.6859]
[1736566397422,2.6854,186.22,186.21,7.21624833]
[1736566400129,2.6858,186.2,186.15,2.6863]
[1736566400325,2.6858,186.2,186.19,7.21624833]
[1736566400829,1.5216,186.25,186.19,7.21624833]
[1736566401422,2.6855,186.21,186.19,7.21624833]
[1736566402337,1.5216,186.25,186.19,7.21624833]
[1736566402638,2.6853,186.23,186.21,7.21624833]
[1736566404336,2.6853,186.22,186.21,7.21624833]
[1736566408637,2.6852,186.23,186.19,2.6858]
[1736566408832,2.6852,186.23,186.21,7.21624833]
[1736566409542,8.73954833,186.29,186.21,7.21624833]
[1736566409742,8.73954833,186.29,186.23,7.21624833]
[1736566410443,2.6851,186.24,186.23,7.21624833]
[1736566413344,1.5233,186.29,186.23,7.21624833]
[1736566413541,1.5233,186.29,186.27,7.21624833]
[1736566415244,2.6845,186.28,186.27,7.21624833]
[1736566434356,1.5233,186.29,186.23,2.6852]
[1736566434557,2.6849,186.26,186.25,7.21624833]
[1736566437364,2.6846,186.27,186.25,7.21624833]
[1736566437560,5.56300782,186.31,186.26,7.21624833]
[1736566437764,5.56300782,186.31,186.29,7.21624833]
[1736566437961,8.24710782,186.31,186.29,7.21624833]
[1736566438773,2.6841,186.31,186.29,7.21624833]
[1736566440266,2.6842,186.3,186.29,7.21624833]
[1736566440464,1.6529,186.35,186.29,7.21624833]
[1736566440666,1.6529,186.35,186.32,7.21624833]
[1736566441464,8.86914833,186.35,186.28,7.21624833]
[1736566441767,7.21624833,186.33,186.28,7.21624833]
[1736566441965,2.6847,186.27,186.24,2.685]
[1736566442163,2.6847,186.27,186.26,7.21624833]
[1736566442668,2.6851,186.24,186.21,5.4]
[1736566442865,2.6851,186.24,186.23,7.21624833]
[1736566443268,7.21624833,186.29,186.22,7.21624833]
[1736566443571,7.21624833,186.27,186.22,7.21624833]
[1736566445081,2.6852,186.23,186.22,7.21624833]
[1736566446164,7.21624833,186.27,186.08,35.24626695]
[1736566446373,7.21624833,186.25,186.19,7.21624833]
[1736566446767,2.6856,186.2,186.19,7.21624833]
[1736566448971,2.6859,186.18,186.17,7.21624833]
[1736566454775,2.6862,186.16,186.15,7.21624833]
[1736566454975,7.21624833,186.16,186.06,2.6876]
[1736566455171,2.6871,186.11,186.09,7.21624833]
[1736566455366,7.21624833,186.16,186.09,7.21624833]
[1736566455774,7.21624833,186.16,186.11,7.21624833]
[1736566456774,7.21624833,186.18,186.11,7.21624833]
[1736566456979,7.21624833,186.19,186.13,7.21624833]
[1736566457374,2.6863,186.16,186.13,7.21624833]
[1736566457571,7.21624833,186.19,186.13,7.21624833]
[1736566459081,2.6864,186.15,186.13,7.21624833]
[1736566462182,7.21624833,186.21,186.13,7.21624833]
[1736566462379,2.6865,186.14,186.11,2.6868]
[1736566463884,2.6863,186.16,186.13,7.21624833]
[1736566464085,2.6863,186.16,186.15,7.21624833]
[1736566474592,3.1967,186.22,186.15,7.21624833]
[1736566474893,1.5979,186.22,186.18,7.21624833]
[1736566476093,2.6858,186.19,186.18,7.21624833]
[1736566477589,1.676,186.24,186.18,7.21624833]
[1736566477800,2.6856,186.21,186.2,7.21624833]
[1736566484901,2.6852,186.23,186.2,7.21624833]
[1736566485096,2.6852,186.23,186.22,7.21624833]
[1736566485503,2.6849,186.25,186.22,7.21624833]
[1736566485802,2.6849,186.25,186.24,7.21624833]
[1736566486303,2.6847,186.27,186.24,7.21624833]
[1736566486608,2.6847,186.27,186.26,7.21624833]
[1736566500702,7.21624833,186.31,186.21,8.0854]
[1736566500907,7.21624833,186.31,186.25,7.21624833]
[1736566502305,2.6848,186.27,186.25,7.21624833]
[1736566503401,2.6848,186.26,186.25,7.21624833]
[1736566508712,2.6848,186.26,186.23,2.6852]
[1736566508713,2.6856,186.21,186.2,7.21624833]
[1736566512924,2.6859,186.19,186.18,7.21624833]
[1736566514018,2.6861,186.17,186.16,7.21624833]
[1736566514414,7.21624833,186.21,186.12,5.4]
[1736566514619,7.21624833,186.21,186.14,7.21624833]
[1736566515420,2.6863,186.16,186.14,7.21624833]
[1736566516727,2.6864,186.15,186.14,7.21624833]
[1736566517626,2.6867,186.13,186.12,7.21624833]
[1736566518228,7.21624833,186.19,186.12,7.21624833]
[1736566518429,2.6865,186.15,186.12,7.21624833]
[1736566518730,2.6865,186.15,186.14,7.21624833]
[1736566519528,1.5831,186.19,186.12,7.21624833]
[1736566520429,2.6866,186.14,186.12,7.21624833]
[1736566521328,1.5831,186.19,186.12,7.21624833]
[1736566521529,2.6866,186.13,186.12,7.21624833]
[1736566523926,1.5831,186.19,186.12,7.21624833]
[1736566524225,1.5831,186.19,186.14,7.21624833]
[1736566524727,2.6862,186.17,186.16,7.21624833]
[1736566524929,10.38984833,186.24,186.16,7.21624833]
[1736566525231,10.38984833,186.24,186.18,7.21624833]
[1736566526323,3.1736,186.24,186.2,7.21624833]
[1736566526520,2.6856,186.21,186.2,7.21624833]
[1736566529733,2.6856,186.2,186.17,2.686]
[1736566529933,2.6856,186.2,186.19,7.21624833]
[1736566533627,10.38984833,186.24,186.14,5.4]
[1736566533831,2.6862,186.17,186.16,7.21624833]
[1736566543841,3.1736,186.24,186.16,9.90244833]
[1736566544039,3.1736,186.24,186.19,7.21624833]
[1736566544739,2.6857,186.2,186.19,7.21624833]
[1736566545043,10.38984833,186.24,186.17,7.21624833]
[1736566545440,2.6859,186.18,186.17,7.21624833]
[1736566578161,2.6858,186.19,186.17,7.21624833]
[1736566578558,6.99282608,186.23,186.17,7.21624833]
[1736566578754,2.6855,186.21,186.19,7.21624833]
[1736566579354,2.6854,186.22,186.19,9.90194833]
[1736566579560,2.6854,186.22,186.21,7.21624833]
[1736566581764,19.5146054,186.28,186.21,7.21624833]
[1736566582055,12.29835707,186.28,186.23,7.21624833]
[1736566582261,12.29835707,186.28,186.25,7.21624833]
[1736566582463,2.6847,186.27,186.25,7.21624833]
[1736566584460,2.6845,186.28,186.25,7.21624833]
[1736566584663,2.6845,186.28,186.27,7.21624833]
[1736566592663,7.21624833,186.31,186.2,5.4]
[1736566592869,7.21624833,186.29,186.23,7.21624833]
[1736566593271,2.6849,186.26,186.25,7.21624833]
[1736566601473,2.6843,186.3,186.25,7.21624833]
[1736566601676,7.21624833,186.31,186.25,7.21624833]
[1736566602379,2.6846,186.28,186.25,7.21624833]
[1736566602579,7.21624833,186.31,186.25,7.21624833]
[1736566602778,3.1498,186.34,186.27,7.21624833]
[1736566602975,3.1498,186.34,186.29,7.21624833]
[1736566604684,2.6841,186.31,186.29,7.21624833]
[1736566607883,2.6839,186.32,186.29,7.21624833]
[1736566608086,2.6839,186.32,186.31,7.21624833]
[1736566609285,2.6836,186.34,186.31,7.21624833]
[1736566609481,2.6836,186.34,186.33,7.21624833]
[1736566620792,7.21624833,186.34,186.28,7.21624833]
[1736566621297,2.6843,186.29,186.28,7.21624833]
[1736566622696,59.53400861,186.35,186.28,7.21624833]
[1736566623000,2.6842,186.3,186.26,2.6848]
[1736566623300,2.6838,186.33,186.23,5.4]
[1736566624202,2.6838,186.33,186.29,2.6843]
[1736566624402,2.6838,186.33,186.32,7.21624833]
[1736566624596,2.6837,186.34,186.32,7.21624833]
[1736566627400,5.56288164,186.38,186.32,7.21624833]
[1736566627602,5.56288164,186.38,186.35,7.21624833]
[1736566628004,2.6833,186.36,186.35,7.21624833]
[1736566628504,5.56288164,186.38,186.31,7.21624833]
[1736566628700,7.21624833,186.37,186.31,7.21624833]
[1736566629905,2.684,186.32,186.31,7.21624833]
[1736566630205,5.56288164,186.38,186.31,7.21624833]
[1736566630406,5.56288164,186.38,186.33,7.21624833]
[1736566631096,2.6837,186.34,186.33,7.21624833]
[1736566638809,2.6838,186.33,186.31,7.21624833]